fUSD/lending_fUSD_20240204
["ID","MTS","AMOUNT","RATE_DAILY","PERIOD"]
[313251926,1707025832542,-167.98637528,0.00025,2]
[313251927,1707025832554,-378.32518252,0.00026243,2]
[313251928,1707025832569,-157.77876247,0.00026243,2]
[313251929,1707025832580,-122.4663987,0.00027467,2]
[313251931,1707025832594,-80.30457188,0.00027467,2]
[313251933,1707025832605,-162.8260691,0.00027474,2]
[313251936,1707025832618,-467.93817757,0.00027701,2]
[313251938,1707025832631,-58.28758538,0.00027701,2]
[313251940,1707025832642,-19294.0,0.000279,2]
[313251943,1707025832651,-691.57738315,0.00028,2]
[313251946,1707025832661,-162.8260691,0.00028675,2]
[313251949,1707025832671,-395.96429059,0.00028798,2]
[313251954,1707025832680,-366.04380636,0.000295,2]
[313251957,1707025832690,-176.13214682,0.000298,2]
[313251959,1707025832700,-1365.801,0.00029847,2]
[313251961,1707025832710,-282.102,0.00029847,2]
[313251963,1707025832723,-1870.254,0.00029847,2]
[313251965,1707025832734,-843.0,0.00029847,2]
[313251967,1707025832745,-952.86,0.00029847,2]
[313251970,1707025832756,-2880.825,0.00029847,2]
[313251972,1707025832766,-1004.667,0.00029847,2]
[313251974,1707025832777,-429.553,0.00029847,2]
[313251976,1707025832787,-169.278,0.00029847,2]
[313251978,1707025832797,-1952.099,0.00029847,2]
[313251980,1707025832807,-1137.306,0.00029847,2]
[313251982,1707025832817,-321.787,0.00029847,2]
[313251985,1707025832826,-1002.379,0.00029847,2]
[313251987,1707025832836,-344.033,0.00029847,2]
[313251989,1707025832847,-2045.707,0.00029847,2]
[313251990,1707025832861,-1043.188,0.00029847,2]
[313251991,1707025832871,-526.22576296,0.000299,3]
[313251992,1707025832881,-500.0,0.00029999,7]
[313251993,1707025832892,-359.35200672,0.0003,2]
[313251994,1707025832902,-1813.8010918,0.0003,4]
[313251995,1707025832913,-9674.94675906,0.0003,2]
[313251996,1707025832924,-19109.07673316,0.0003,4]
[313251997,1707025832934,-694.54802203,0.0003,2]
[313251998,1707025832944,-584.86692262,0.0003,2]
[313251999,1707025832954,-3000.0,0.0003,2]
[313252000,1707025832965,-2650.39642541,0.0003,4]
[313252001,1707025832976,-909.32407402,0.0003,4]
[313252002,1707025832986,-8878.01598316,0.0003,4]
[313252003,1707025832996,-817.74425652,0.0003,4]
[313252004,1707025833007,-155.0,0.0003,4]
[313252005,1707025833017,-155.0,0.0003,2]
[313252006,1707025833027,-276.41487441,0.00030887,2]
[313252007,1707025833038,-1000.0,0.00030895,2]
[313252008,1707025833049,-4236.3598,0.00030897,2]
[313252009,1707025833059,-257.45432196,0.00031,4]
[313252010,1707025833070,-236.64587864,0.00031105,4]
[313252011,1707025833082,-154.63,0.00031212,2]
[313252012,1707025833093,-250.0,0.00031301,2]
[313252013,1707025833105,-276.41487441,0.00031348,2]
[313252014,1707025833116,-7768.27,0.00031357,2]
[313252015,1707025833127,-150.0,0.00031385,2]
[313252016,1707025833138,-1282.79,0.00031452,2]
[313252017,1707025833149,-156.05548698,0.00031498,7]
[313252018,1707025833161,-276.41487441,0.00031529,2]
[313252019,1707025833174,-300.16,0.00031533,2]
[313252020,1707025833185,-7768.27,0.00031539,2]
[313252021,1707025833197,-600.0,0.00031557,2]
[313252022,1707025833211,-2500.0,0.00031557,3]
[313252023,1707025833222,-211.29,0.00031601,2]
[313252024,1707025833233,-154.63,0.00031602,2]
[313252025,1707025833243,-276.41487441,0.00031634,2]
[313252026,1707025833255,-2207.04237731,0.0003166,28]
[313252027,1707025833265,-159.48,0.00031672,2]
[313252028,1707025833275,-871.11,0.00031676,2]
[313252029,1707025833285,-276.41487441,0.0003171,2]
[313252030,1707025833295,-7768.27,0.0003172,2]
[313252031,1707025833306,-163.77,0.0003175,2]
[313252032,1707025833316,-276.41487441,0.00031891,2]
[313252033,1707025833326,-7768.27,0.00031901,2]
[313252034,1707025833337,-276.41487441,0.0003199,2]
[313252035,1707025833346,-276.41487441,0.0003199,2]
[313252036,1707025833356,-154.63,0.00031992,2]
[313252037,1707025833366,-13132.26818572,0.00032,4]
[313252038,1707025833377,-276.41487441,0.00032072,2]
[313252039,1707025833387,-7768.27,0.00032082,2]
[313252040,1707025833398,-276.41487441,0.00032253,2]
[313252041,1707025833407,-7768.27,0.00032263,2]
[313252042,1707025833417,-154.63,0.00032383,2]
[313252043,1707025833428,-1064.74,0.00032415,2]
[313252044,1707025833438,-276.41487441,0.00032435,2]
[313252045,1707025833449,-7768.27,0.00032445,2]
[313252046,1707025833459,-202.75774539,0.000325,2]
[313252047,1707025833470,-276.41487441,0.00032616,2]
[313252048,1707025833480,-6217.12242662,0.00032626,2]
[313252049,1707025833493,-345.85363924,0.00032626,2]
[313252050,1707025833506,-1205.29393414,0.00032626,2]
[313252051,1707025833516,-154.63,0.00032773,2]
[313252052,1707025833526,-276.41487441,0.00032797,2]
[313252053,1707025833537,-639.26119145,0.00032807,2]
[313252054,1707025833550,-352.32495613,0.00032807,2]
[313252055,1707025833562,-999.87426,0.00032807,2]
[313252056,1707025833576,-301.52504693,0.00032807,2]
[313252081,1707025838382,-304.58743218,0.00027466,2]
[313252082,1707025838392,-112.53394682,0.00029953,2]
[313252083,1707025838403,-87.71605318,0.00029953,2]
[313252084,1707025838412,-200.25,0.00032217,2]
[313252085,1707025838421,-1739.37276819,0.00032807,2]
[313252086,1707025838435,-898.98004566,0.00032807,2]
[313252087,1707025838446,-2836.93173164,0.00032807,2]
[313252088,1707025838459,-500.0,0.00032877,2]
[313252089,1707025838469,-300.0,0.00032927,2]
[313252090,1707025838478,-276.41487441,0.00032978,2]
[313252091,1707025838487,-6418.46723841,0.00032988,2]
[313252092,1707025838499,-1156.1043936,0.00032988,2]
[313252093,1707025838510,-193.69836799,0.00032988,2]
[313252094,1707025838518,-87.85163201,0.0003306,2]
[313252095,1707025838530,-84.45836799,0.0003306,2]
[313252096,1707025838540,-169.11,0.00033155,2]
[313252097,1707025838549,-154.63,0.00033163,2]
[313252098,1707025838558,-207.81412782,0.00033177,2]
[313252099,1707025838569,-92.34587218,0.00033177,2]
[313252100,1707025838578,-276.41487441,0.0003319,2]
[313252101,1707025838587,-276.41487441,0.0003319,2]
[313252102,1707025838596,-276.41487441,0.0003319,2]
[313252103,1707025838605,-918.42129014,0.000332,2]
[313252104,1707025838645,-1028.44487161,0.000332,2]
[313252105,1707025838657,-370.9210067,0.000332,2]
[313252106,1707025838669,-1367.27393774,0.000332,2]
[313252107,1707025838680,-429.564132,0.000332,2]
[313252108,1707025838735,-393.08445591,0.000332,2]
[313252109,1707025838748,-1901.93818395,0.000332,2]
[313252110,1707025838759,-13041.15955675,0.000332,2]
[313252112,1707025838771,-3363.2725652,0.000332,2]
[313252114,1707025838780,-1769.66,0.00033373,2]
[313252116,1707025838788,-163.77,0.00033405,2]
[313252118,1707025838797,-152.69,0.000335,2]
[313252119,1707025838806,-152.69,0.000335,2]
[313252121,1707025838815,-152.69,0.000335,2]
[313252123,1707025838824,-152.69,0.000335,2]
[313252125,1707025838833,-152.69,0.000335,2]
[313252127,1707025838842,-152.69,0.000335,2]
[313252128,1707025838851,-152.69,0.000335,2]
[313252129,1707025838860,-152.69,0.000335,2]
[313252130,1707025838869,-152.69,0.000335,2]
[313252131,1707025838878,-400.0,0.00033517,2]
[313252132,1707025838887,-154.63,0.00033553,2]
[313252133,1707025838896,-154.63,0.00033943,2]
[313252134,1707025838905,-765.94522118,0.00034,4]
[313252135,1707025838915,-162.8260691,0.00034018,7]
[313252136,1707025838923,-300.0,0.00034297,2]
[313252137,1707025838932,-154.63,0.00034333,2]
[313252138,1707025838941,-276.41487441,0.0003443,2]
[313252139,1707025838950,-1133.96977705,0.0003444,2]
[313252140,1707025838959,-6870.64976652,0.00034443,2]
[313252141,1707025838969,-150.0,0.00034443,2]
[313252142,1707025838978,-200.25,0.0003448,2]
[313252143,1707025838987,-203.22,0.00034541,2]
[313252144,1707025838995,-276.41487441,0.00034607,2]
[313252145,1707025839005,-1133.96977705,0.00034617,2]
[313252146,1707025839013,-152.69709984,0.00034649,2]
[313252147,1707025839022,-150.0,0.00034723,2]
[313252148,1707025839031,-276.41487441,0.00034741,2]
[313252149,1707025839040,-159.48,0.00034748,2]
[313252150,1707025839049,-10038.35002792,0.00034751,2]
[313252151,1707025839058,-3000.0,0.00034791,2]
[313252152,1707025839067,-300.16,0.0003482,2]
[313252153,1707025839076,-500.0,0.000349,2]
[313252154,1707025839085,-500.0,0.000349,2]
[313252155,1707025839094,-500.0,0.000349,2]
[313252156,1707025839102,-500.0,0.000349,2]
[313252157,1707025839111,-500.0,0.000349,2]
[313252158,1707025839120,-500.0,0.000349,2]
[313252159,1707025839129,-500.0,0.000349,2]
[313252160,1707025839138,-500.0,0.000349,2]
[313252161,1707025839147,-500.0,0.000349,2]
[313252162,1707025839156,-500.0,0.000349,2]
[313252163,1707025839165,-500.0,0.000349,2]
[313252164,1707025839174,-500.0,0.000349,2]
[313252165,1707025839183,-500.0,0.000349,2]
[313252166,1707025839191,-500.0,0.000349,2]
[313252167,1707025839200,-500.0,0.000349,2]
[313252168,1707025839212,-500.0,0.000349,2]
[313252169,1707025839222,-500.0,0.000349,2]
[313252170,1707025839233,-500.0,0.000349,2]
[313252171,1707025839242,-500.0,0.000349,2]
[313252172,1707025839251,-500.0,0.000349,2]
[313252173,1707025839260,-500.0,0.000349,2]
[313252174,1707025839269,-500.0,0.000349,2]
[313252175,1707025839278,-500.0,0.000349,2]
[313252176,1707025839288,-500.0,0.000349,2]
[313252177,1707025839297,-500.0,0.000349,2]
[313252178,1707025839306,-500.0,0.000349,2]
[313252179,1707025839315,-500.0,0.000349,2]
[313252180,1707025839323,-500.0,0.000349,2]
[313252181,1707025839333,-500.0,0.000349,2]
[313252182,1707025839342,-500.0,0.000349,2]
[313252183,1707025839351,-500.0,0.000349,2]
[313252184,1707025839360,-500.0,0.000349,2]
[313252185,1707025839369,-500.0,0.000349,2]
[313252186,1707025839379,-500.0,0.000349,2]
[313252187,1707025839388,-500.0,0.000349,2]
[313252188,1707025839397,-500.0,0.000349,2]
[313252189,1707025839406,-82.67746109,0.000349,4]
[313252190,1707025839418,-8916.36861792,0.000349,4]
[313252191,1707025839427,-180.92409559,0.00034971,7]
[313252192,1707025839437,-358.57010319,0.00034989,4]
[313252193,1707025839446,-686.62489687,0.0003499,4]
[313252194,1707025839455,-155.0,0.0003499,4]
[313252195,1707025839464,-200.0,0.0003499,2]
[313252196,1707025839474,-5637.40464828,0.0003499,2]
[313252197,1707025839483,-5863.36973768,0.0003499,4]
[313252198,1707025839492,-3497.41835432,0.0003499,4]
[313252199,1707025839501,-1583.37724857,0.0003499,4]
[313252200,1707025839511,-1970.77972657,0.0003499,2]
[313252201,1707025839520,-544.62906183,0.0003499,4]
[313252202,1707025839530,-2000.0,0.0003499,2]
[313252203,1707025839540,-200.0,0.0003499,2]
[313252204,1707025839549,-500.0,0.0003499,2]
[313252205,1707025839558,-4000.0,0.0003499,2]
[313252206,1707025839568,-400.62626616,0.00034998,4]
[313252207,1707025839577,-246.53925358,0.00034999,4]
[313252208,1707025839586,-3538.65416857,0.00034999,4]
[313252209,1707025839598,-10986.53672083,0.00034999,4]
[313252210,1707025839607,-155.0,0.00035,2]
[313252211,1707025839616,-390.3945362,0.00035,4]
[313252212,1707025839625,-221.77404607,0.00035,4]
[313252213,1707025839634,-231.50696066,0.00035,4]
[313252214,1707025839643,-450.12144164,0.00035,4]
[313252215,1707025839652,-1265.82043803,0.00035,4]
[313252216,1707025839662,-155.0,0.00035,2]
[313252217,1707025839671,-448.03359523,0.00035,4]
[313252218,1707025839680,-3456.90713924,0.00035,5]
[313252219,1707025839689,-155.42670509,0.00035,7]
[313252220,1707025839698,-217.0,0.00035,2]
[313252221,1707025839707,-292.068309,0.00035,2]
[313252222,1707025839717,-1799.58,0.00035,5]
[313252223,1707025839726,-1133.96977705,0.00035123,2]
[313252224,1707025839736,-231.14100943,0.00035273,4]
[313252225,1707025839745,-186.62386355,0.00035274,4]
[313252226,1707025839754,-180.0,0.00035326,2]
[313252227,1707025839763,-2000.0,0.0003534,2]
[313252228,1707025839772,-200.0,0.0003534,2]
[313252229,1707025839781,-1133.96977708,0.00035401,2]
[313252230,1707025839790,-600.0,0.00035502,2]
[313252231,1707025839799,-2500.0,0.00035516,2]
[313252232,1707025839809,-204.458097,0.0003561,5]
[313252233,1707025839817,-10000.0,0.00035616,2]
[313252234,1707025839826,-330.49079853,0.00035693,2]
[313252235,1707025839836,-200.0,0.00035693,2]
[313252236,1707025839845,-167.0,0.00035736,2]
[313252237,1707025839855,-152.69,0.000358,3]
[313252238,1707025839864,-152.69,0.000358,3]
[313252239,1707025839874,-152.69,0.000358,3]
[313252240,1707025839884,-152.69,0.000358,3]
[313252241,1707025839893,-152.69,0.000358,3]
[313252242,1707025839903,-152.69,0.000358,3]
[313252243,1707025839913,-152.69,0.000358,3]
[313252244,1707025839922,-152.69,0.000358,3]
[313252245,1707025839932,-152.69,0.000358,3]
[313252246,1707025839942,-299.32441982,0.00036,4]
[313252247,1707025839951,-157.89290343,0.000361,4]
[313252248,1707025839961,-800.0,0.00036158,5]
[313252249,1707025839970,-375.8733,0.0003626,2]
[313252250,1707025839978,-971.58,0.00036301,2]
[313252251,1707025839987,-414.42,0.00036301,2]
[313252252,1707025839996,-945.74,0.00036301,2]
[313252253,1707025840006,-403.63,0.00036301,2]
[313252254,1707025840014,-6098.77546603,0.0003636,7]
[313252255,1707025840952,-1301.10073228,0.0003636,7]
[313252256,1707025841682,-416.5407946,0.0003636,7]
[313252257,1707025841692,-180.92409559,0.00036381,7]
[313252258,1707025841701,-300.16,0.00036464,2]
[313252259,1707025841710,-1788.95,0.0003647,5]
[313252260,1707025841719,-1477.00992173,0.00036481,8]
[313252261,1707025841728,-3275.925741,0.0003649,10]
[313252262,1707025841737,-37171.18896892,0.000365,5]
[313252263,1707025841746,-150.0,0.00036701,2]
[313252264,1707025841756,-200.25,0.00036744,2]
[313252265,1707025841765,-151.0204,0.00036798,6]
[313252266,1707025841774,-3275.925741,0.00036924,10]
[313252267,1707025841782,-10000.0,0.00036934,2]
[313252268,1707025841791,-311.32327923,0.00037,4]
[313252269,1707025841800,-798.6176409,0.00037,2]
[313252270,1707025841809,-155.0,0.00037,2]
[313252271,1707025841818,-171.0204,0.00037198,8]
[313252272,1707025841827,-1477.00992171,0.00037204,8]
[313252273,1707025841836,-3275.925741,0.0003725,10]
[313252274,1707025841845,-403.63,0.0003726,2]
[313252275,1707025841854,-945.74,0.0003726,2]
[313252276,1707025841863,-403.63,0.0003726,2]
[313252277,1707025841872,-945.74,0.0003726,2]
[313252278,1707025841881,-945.74,0.0003726,2]
[313252279,1707025841890,-187.57,0.0003726,2]
[313252280,1707025841900,-945.74,0.0003726,2]
[313252281,1707025841908,-945.74,0.0003726,2]
[313252282,1707025841917,-945.74,0.0003726,2]
[313252283,1707025841926,-670.81,0.0003726,2]
[313252284,1707025841936,-500.0,0.00037377,2]
[313252285,1707025841945,-150.0,0.00037404,2]
[313252286,1707025841954,-171.0204,0.00037498,8]
[313252287,1707025841963,-151.10766755,0.00037521,2]
[313252288,1707025841972,-150.0,0.00037651,2]
[313252289,1707025841982,-400.0,0.00037707,2]
[313252290,1707025841991,-356.0,0.0003779,5]
[313252291,1707025842001,-1637.9628705,0.0003779,10]
[313252292,1707025842012,-1637.9628705,0.00037793,10]
[313252293,1707025842021,-1142.05234115,0.00037797,2]
[313252294,1707025842030,-2000.0,0.000378,4]
[313252295,1707025842039,-522.15426683,0.000378,11]
[313252296,1707025842048,-4412.9737,0.000378,3]
[313252297,1707025842057,-176.43771437,0.00037803,2]
[313252298,1707025842066,-188.73343914,0.00037828,2]
[313252299,1707025842075,-257.80072442,0.00037828,2]
[313252300,1707025842084,-3275.925741,0.00037878,10]
[313252301,1707025842093,-1590.74569553,0.00037879,14]
[313252302,1707025842102,-24552.68412579,0.0003788,10]
[313252303,1707025842114,-260.72695755,0.0003788,10]
[313252304,1707025842126,-356.99633322,0.0003788,10]
[313252305,1707025842141,-4312.92425244,0.0003788,10]
[313252306,1707025842150,-328.46908669,0.00037897,4]
[313252307,1707025842160,-296.46278445,0.00037898,4]
[313252308,1707025842170,-3525.44081932,0.00037899,4]
[313252309,1707025842179,-1058.42083575,0.00037899,4]
[313252310,1707025842187,-3014.58002282,0.00037899,2]
[313252311,1707025842202,-292.8226816,0.00037899,2]
[313252312,1707025842214,-150.84407626,0.00037899,2]
[313252313,1707025842223,-62449.0355172,0.000379,3]
[313252318,1707025843317,-836.39147061,0.000379,3]
[313252320,1707025843328,-666.41,0.000379,3]
[313252322,1707025843403,-8080.28742592,0.000379,3]
[313252323,1707025843415,-636.88921262,0.000379,3]
[313252324,1707025843425,-1560.0,0.000379,3]
[313252325,1707025843437,-2172.25771036,0.000379,3]
[313252326,1707025843456,-6649.251936,0.000379,3]
[313252327,1707025843468,-926.38502705,0.000379,3]
[313252328,1707025843565,-4824.07128542,0.000379,3]
[313252329,1707025843579,-6855.90067227,0.000379,3]
[313252330,1707025843590,-2278.81377185,0.000379,3]
[313252331,1707025843618,-429.3413207,0.000379,3]
[313252332,1707025843630,-338.20311739,0.000379,3]
[313252333,1707025843641,-937.480368,0.000379,3]
[313252334,1707025843716,-415.21587112,0.000379,3]
[313252345,1707025846423,-366.04380636,0.000295,2]
[313252346,1707025846433,-176.13214682,0.000298,2]
[313252347,1707025846442,-4145.75337192,0.0003,4]
[313252348,1707025846453,-974.15576218,0.0003,4]
[313252349,1707025846530,-793.5294564,0.0003,4]
[313252350,1707025846541,-2964.57739266,0.0003,4]
[313252351,1707025846551,-584.86692262,0.0003,2]
[313252352,1707025846560,-450.55568472,0.00037878,2]
[313252353,1707025846584,-2152.46439114,0.00037878,2]
[313252354,1707025846640,-396.97992414,0.00037878,2]
[313252355,1707025846650,-236.73007086,0.00037879,2]
[313252356,1707025846662,-862.563003,0.00037879,2]
[313252357,1707025846673,-1158.10832356,0.00037879,2]
[313252358,1707025846685,-7417.54536164,0.00037879,2]
[313252359,1707025846694,-271.17785039,0.00037879,4]
[313252360,1707025846703,-2720.85739389,0.00037879,4]
[313252361,1707025846712,-191941.34072323,0.000379,3]
[313252362,1707025846722,-312.0,0.000379,5]
[313252363,1707025846731,-155.0,0.000379,4]
[313252364,1707025846740,-4050.67071956,0.000379,15]
[313252365,1707025846749,-243.48102715,0.000379,2]
[313252366,1707025846758,-31831.64383825,0.000379,2]
[313252367,1707025846767,-200.0,0.000379,12]
[313252368,1707025846776,-500.0,0.000379,6]
[313252369,1707025846785,-500.0,0.000379,6]
[313252370,1707025846794,-799.604117,0.000379,6]
[313252371,1707025846803,-636724.182982,0.000379,3]
[313252372,1707025846812,-185.07156446,0.000379,2]
[313252373,1707025846821,-274293.22933031,0.000379,3]
[313252374,1707025846840,-1500.0,0.000379,3]
[313252375,1707025953012,630.63818155,0.00022078,2]
[313252376,1707025953775,1694.34235594,0.00022078,2]
[313252377,1707026000856,152.8,0.000225,2]
[313252378,1707026029751,550.0,0.00022,3]
[313252385,1707026643015,150.08,0.0002199,2]
[313252386,1707026705306,167.87,0.0002222,2]
[313252402,1707027031498,-155.0,0.00022757,2]
[313252404,1707027031508,-150.04940007,0.00022758,2]
[313252408,1707027031554,-373.02314935,0.00022758,2]
[313252409,1707027031562,-2025.09528888,0.00022759,2]
[313252410,1707027031572,-420.81919516,0.0002276,2]
[313252411,1707027031582,-581.06236661,0.00022777,2]
[313252412,1707027031596,-52.9586758,0.00022777,2]
[313252413,1707027031605,-150.0,0.00022899,2]
[313252414,1707027031614,-1703.12309456,0.000229,2]
[313252415,1707027031626,-594.27680544,0.000229,2]
[313252416,1707027031636,-478.64141127,0.000229,2]
[313252417,1707027031645,-157.28459607,0.000229,2]
[313252418,1707027031654,-312.41234872,0.000229,2]
[313252419,1707027031670,-315.2812933,0.000229,2]
[313252420,1707027031682,-480.06379928,0.000229,2]
[313252421,1707027031691,-69.28699343,0.000229,2]
[313252422,1707027031721,-120.85049469,0.000229,2]
[313252423,1707027031730,-171.8671496,0.000229,2]
[313252424,1707027031739,-859.9260126,0.000229,2]
[313252425,1707027031748,-19950.59562988,0.0002299,2]
[313252426,1707027031758,-499.99,0.0002299,2]
[313252427,1707027031767,-2121.53127465,0.00022998,2]
[313252428,1707027031776,-500.0,0.00022999,2]
[313252429,1707027031786,-500.0,0.00022999,2]
[313252430,1707027031794,-500.0,0.00022999,2]
[313252431,1707027031804,-500.0,0.00022999,2]
[313252432,1707027031813,-500.0,0.00022999,2]
[313252433,1707027031822,-500.0,0.00022999,2]
[313252434,1707027031831,-500.0,0.00022999,2]
[313252436,1707027031840,-500.0,0.00022999,2]
[313252438,1707027031849,-500.0,0.00022999,2]
[313252440,1707027031858,-500.0,0.00022999,2]
[313252442,1707027031867,-500.0,0.00022999,2]
[313252443,1707027031877,-500.0,0.00022999,2]
[313252445,1707027031886,-500.0,0.00022999,2]
[313252447,1707027031895,-500.0,0.00022999,2]
[313252449,1707027031905,-500.0,0.00022999,2]
[313252451,1707027031914,-500.0,0.00022999,2]
[313252453,1707027031923,-500.0,0.00022999,2]
[313252455,1707027031932,-500.0,0.00022999,2]
[313252457,1707027031941,-500.0,0.00022999,2]
[313252459,1707027031950,-500.0,0.00022999,2]
[313252461,1707027031960,-500.0,0.00022999,2]
[313252463,1707027031969,-500.0,0.00022999,2]
[313252465,1707027031980,-500.0,0.00022999,2]
[313252466,1707027031989,-500.0,0.00022999,2]
[313252468,1707027031998,-500.0,0.00022999,2]
[313252470,1707027032008,-500.0,0.00022999,2]
[313252472,1707027032017,-500.0,0.00022999,2]
[313252474,1707027032026,-500.0,0.00022999,2]
[313252486,1707027032216,-500.0,0.00022999,2]
[313252487,1707027032231,-500.0,0.00022999,2]
[313252488,1707027032241,-500.0,0.00022999,2]
[313252489,1707027032251,-500.0,0.00022999,2]
[313252490,1707027032260,-500.0,0.00022999,2]
[313252491,1707027032270,-500.0,0.00022999,2]
[313252492,1707027032279,-206.17290471,0.00022999,2]
[313252493,1707027032288,-500.0,0.00022999,2]
[313252494,1707027032297,-500.0,0.00022999,2]
[313252495,1707027032306,-500.0,0.00022999,2]
[313252496,1707027032315,-500.0,0.00022999,2]
[313252497,1707027032324,-500.0,0.00022999,2]
[313252498,1707027032333,-500.0,0.00022999,2]
[313252499,1707027032342,-500.0,0.00022999,2]
[313252500,1707027032351,-500.0,0.00022999,2]
[313252501,1707027032360,-500.0,0.00022999,2]
[313252502,1707027032369,-500.0,0.00022999,2]
[313252503,1707027032378,-500.0,0.00022999,2]
[313252504,1707027032388,-500.0,0.00022999,2]
[313252505,1707027032397,-500.0,0.00022999,2]
[313252506,1707027032406,-500.0,0.00022999,2]
[313252507,1707027032416,-500.0,0.00022999,2]
[313252508,1707027032425,-454.11,0.00022999,2]
[313252509,1707027032435,-1301.5,0.00023,2]
[313252510,1707027032444,-241969.30807649,0.00023,3]
[313252511,1707027032453,-14328.00873931,0.00023,2]
[313252512,1707027032466,-616.61648566,0.00023,2]
[313252513,1707027032477,-318.3432,0.00023,2]
[313252514,1707027032492,-861.30312776,0.00023,2]
[313252515,1707027032503,-7266.00620357,0.00023,2]
[313252516,1707027037536,-4447.81020263,0.00023,2]
[313252517,1707027037594,-5628.37594026,0.00023,2]
[313252518,1707027037701,-422.83764416,0.00023,2]
[313252519,1707027037713,-429.64,0.00023,2]
[313252520,1707027037807,-15570.04461585,0.00023,2]
[313252781,1707027040829,-1267.80842534,0.00023,2]
[313252799,1707027040988,-637.26935831,0.00023,2]
[313252802,1707027041000,-478.22499076,0.00023,2]
[313252804,1707027041012,-4097.45397246,0.00023,2]
[313252806,1707027041023,-998.486475,0.00023,2]
[313252992,1707027042584,-13806.14990613,0.00023,2]
[313252998,1707027042637,-1521.56675804,0.00023,2]
[313253004,1707027042692,-575.91510891,0.00023,2]
[313253005,1707027042747,-7718.64355396,0.00023,2]
[313253006,1707027042758,-2470.75229642,0.00023,2]
[313253007,1707027042802,-2343.59286115,0.00023,2]
[313253008,1707027042857,-1300.1326,0.00023,2]
[313253020,1707027045644,-505.85696838,0.00023,2]
[313253021,1707027045713,-2859.71598182,0.00023,2]
[313253022,1707027045873,-647.88662886,0.00023,2]
[313253023,1707027045884,-1041454.6377451,0.00023,2]
[313253039,1707027737058,1250.36517067,0.00022415,2]
[313253040,1707027838655,550.0,0.00022,3]
[313253041,1707027859806,1250.36517068,0.0002229,2]
[313253042,1707027860107,1250.36517068,0.00022576,2]
[313253043,1707027868262,174.46405533,0.00022571,2]
[313253044,1707027913694,2343.29386705,0.00021753,2]
[313253045,1707027918084,521.71785662,0.00021982,2]
[313253046,1707028041749,513.68727167,0.0002265,2]
[313253047,1707028060209,420.81919516,0.0002265,2]
[313253048,1707028070686,174.81,0.00020855,2]
[313253049,1707028074329,420.81919516,0.0002264,2]
[313253050,1707028100199,491.54087249,0.0002264,2]
[313253051,1707028153544,200.0,0.00022563,2]
[313253064,1707028231746,-155.0,0.00022651,2]
[313253065,1707028231756,-919.2386529,0.00022651,2]
[313253066,1707028231803,-1105.85663598,0.00022651,2]
[313253067,1707028231812,-437.52061057,0.00022652,2]
[313253068,1707028231824,-356.62275345,0.00022654,2]
[313253069,1707028231860,-2147.51569637,0.00022654,2]
[313253070,1707028231918,-2071.2725109,0.00022654,2]
[313253071,1707028231978,-331.62881422,0.00022654,2]
[313253107,1707028237761,-784.20550947,0.00022654,2]
[313253108,1707028237817,-648.5229323,0.00022654,2]
[313253109,1707028237829,-258.61400001,0.00022654,2]
[313253110,1707028237841,-3750.66670751,0.00022654,2]
[313253111,1707028237942,-574.98736815,0.00022654,2]
[313253112,1707028237987,-627.74580422,0.00022654,2]